bitfinex-derivatives/quotes_BTCF0:USTF0_20250716
["timestamp","ask_amount","ask_price","bid_price","bid_amount"]
[1752679367620,0.01859301,119270.0,119260.0,1.27658917]
[1752679368118,0.01859301,119270.0,119260.0,0.8453123]
[1752679368519,0.2620449,119290.0,119280.0,0.1676142]
[1752679368816,0.1676282,119270.0,119260.0,0.02953629]
[1752679369115,0.65366507,119270.0,119260.0,0.00694629]
[1752679369319,0.2201682,119270.0,119260.0,0.00694629]
[1752679370112,0.2201682,119270.0,119260.0,0.65078629]
[1752679370311,0.65366507,119270.0,119260.0,0.00694629]
[1752679370820,0.8458973,119270.0,119260.0,0.1716423]
[1752679371020,0.8458973,119270.0,119260.0,0.004]
[1752679371021,0.8460973,119270.0,119260.0,0.004]
[1752679371217,0.8460973,119270.0,119260.0,0.1716423]
[1752679372019,0.8041873,119270.0,119260.0,0.1716423]
[1752679372215,0.8041873,119270.0,119260.0,0.004]
[1752679372416,1.23768417,119270.0,119260.0,0.6476]
[1752679372617,1.22768417,119270.0,119260.0,0.6476]
[1752679372813,0.7941873,119270.0,119260.0,0.6446]
[1752679373119,1.22768417,119270.0,119260.0,0.6446]
[1752679373519,1.22768417,119270.0,119260.0,0.001]
[1752679373913,0.1961823,119260.0,119250.0,0.0002]
[1752679374123,0.1961823,119260.0,119240.0,0.1678704]
[1752679374124,0.1961964,119250.0,119240.0,0.1678704]
[1752679374422,0.1961964,119250.0,119230.0,0.1005593]
[1752679374423,0.1962104,119240.0,119230.0,0.2265115]
[1752679374621,0.2192504,119240.0,119230.0,0.2263115]
[1752679374824,0.2192504,119240.0,119230.0,0.0167177]
[1752679375224,0.2192504,119240.0,119230.0,0.6588377]
[1752679375729,0.2192504,119240.0,119230.0,0.8265222]
[1752679376017,0.2190645,119230.0,119220.0,0.64212]
[1752679376217,0.2192645,119230.0,119220.0,0.63192]
[1752679376426,0.2092645,119230.0,119220.0,0.63192]
[1752679376618,0.2190785,119220.0,119210.0,0.01692091]
[1752679376813,0.65277537,119220.0,119210.0,0.01672091]
[1752679377022,0.82054337,119220.0,119210.0,1e-08]
[1752679377724,0.2192785,119220.0,119210.0,1e-08]
[1752679377916,0.7192785,119220.0,119210.0,1e-08]
[1752679378115,1.15277537,119220.0,119210.0,1e-08]
[1752679378720,1.15277537,119220.0,119210.0,0.00300001]
[1752679380127,1.32054337,119220.0,119210.0,0.00300001]
[1752679380622,0.78521409,119220.0,119210.0,0.00300001]
[1752679380833,0.7192785,119220.0,119210.0,0.81131261]
[1752679381021,0.7192785,119220.0,119210.0,0.83510261]
[1752679381217,0.5002,119220.0,119210.0,1.28896948]
[1752679381421,0.1952586,119220.0,119210.0,0.04716001]
[1752679381728,0.2192786,119220.0,119210.0,0.00300001]
[1752679382027,0.2192786,119220.0,119210.0,0.21487261]
[1752679382615,0.2192786,119220.0,119210.0,0.04716001]
[1752679382927,0.2192786,119220.0,119210.0,0.17071261]
[1752679383128,0.0002,119220.0,119210.0,0.64758948]
[1752679383422,0.0002,119220.0,119210.0,0.81535748]
[1752679383619,0.1676862,119230.0,119220.0,0.77312967]
[1752679383816,0.1676862,119230.0,119220.0,0.8553045]
[1752679384425,0.1676862,119230.0,119220.0,0.68762]
[1752679384735,0.1676986,119220.0,119210.0,1e-08]
[1752679385031,0.60119547,119220.0,119210.0,1e-08]
[1752679385228,0.1905667,119200.0,119190.0,0.01681207]
[1752679385420,0.2191067,119200.0,119190.0,0.01681207]
[1752679385619,0.1677267,119200.0,119190.0,0.22871287]
[1752679386229,0.1677267,119200.0,119190.0,0.06097207]
[1752679386423,0.2191067,119200.0,119190.0,0.01681207]
[1752679386623,0.65260357,119200.0,119190.0,0.01681207]
[1752679386836,0.65260357,119200.0,119190.0,0.01672294]
[1752679387021,1.38621175,119200.0,119190.0,4e-08]
[1752679387227,0.1677689,119170.0,119160.0,0.65326335]
[1752679387533,0.2091489,119170.0,119160.0,0.00722335]
[1752679387724,0.2091489,119170.0,119160.0,0.82088635]
[1752679387924,0.05138,119170.0,119160.0,0.84125635]
[1752679388130,0.1951289,119170.0,119160.0,0.86504635]
[1752679388331,0.1951289,119170.0,119160.0,0.00722335]
[1752679388525,0.2191489,119170.0,119160.0,0.00722335]
[1752679389024,0.2191489,119170.0,119160.0,0.01422335]
[1752679389228,0.05138,119170.0,119160.0,0.18200635]
[1752679389428,0.2191489,119170.0,119160.0,0.85127635]
[1752679390433,0.2191489,119170.0,119160.0,0.65970335]
[1752679390619,0.2191489,119170.0,119160.0,0.82748635]
[1752679390822,0.2191489,119170.0,119160.0,0.65970335]
[1752679391428,0.2191489,119170.0,119160.0,0.82748635]
[1752679391729,0.2191489,119170.0,119160.0,0.65670335]
[1752679391937,0.2191489,119170.0,119160.0,0.82448635]
[1752679392232,0.2191489,119170.0,119160.0,0.65670335]
[1752679392432,0.2191489,119170.0,119160.0,0.82448635]
[1752679392629,0.2191489,119170.0,119160.0,0.65670335]
[1752679392834,0.2191489,119170.0,119160.0,0.82448635]
[1752679393631,0.2191489,119170.0,119160.0,0.86864635]
[1752679393632,0.02284,119170.0,119160.0,0.86864635]
[1752679393832,0.1906043,119180.0,119170.0,0.1677689]
[1752679394032,0.1771933,119190.0,119180.0,0.1677548]
[1752679394226,0.05138,119190.0,119180.0,0.8117548]
[1752679394434,0.2565338,119200.0,119190.0,0.1915308]
[1752679394637,0.088383,119210.0,119200.0,0.1677267]
[1752679394933,0.1677234,119210.0,119200.0,1.28958357]
[1752679395228,0.02284,119230.0,119220.0,0.2334018]
[1752679395229,0.1676963,119230.0,119220.0,0.2334018]
[1752679395429,0.01768122,119230.0,119220.0,1.41714477]
[1752679395621,0.1676845,119230.0,119220.0,1.37522107]
[1752679396030,0.2934414,119240.0,119230.0,0.1676845]
[1752679396226,0.2515208,119240.0,119230.0,0.1914745]
[1752679396432,0.2743608,119240.0,119230.0,0.1914745]
[1752679396633,0.04686,119240.0,119230.0,0.1914745]
[1752679396830,0.3028781,119250.0,119240.0,0.1676704]
[1752679397028,0.2786408,119250.0,119240.0,0.1676704]
[1752679397235,0.2609616,119250.0,119240.0,0.1676704]
[1752679397426,0.2190475,119250.0,119240.0,0.1676704]
[1752679397626,0.05138,119250.0,119240.0,0.8547904]
[1752679397831,0.27991794,119260.0,119250.0,0.1676564]
[1752679398527,0.0887749,119250.0,119220.0,0.53351591]
[1752679398831,0.1676985,119220.0,119210.0,0.143033]
[1752679399035,0.1676985,119220.0,119210.0,0.89299]
[1752679399428,0.1676985,119220.0,119210.0,0.92538564]
[1752679399624,0.1950556,119230.0,119220.0,0.1914885]
[1752679399825,0.1950556,119230.0,119220.0,0.2118585]
[1752679400435,0.1950556,119230.0,119210.0,1.27280091]
[1752679400436,0.1676986,119220.0,119210.0,0.0410442]
[1752679400633,0.2194086,119220.0,119210.0,0.0174542]
[1752679401331,0.1677548,119180.0,119170.0,1.2678605]
[1752679401538,0.2143348,119180.0,119170.0,1.9935789]
[1752679402439,0.2143348,119180.0,119170.0,2.00570679]
[1752679402738,0.1677548,119180.0,119170.0,2.03105679]
[1752679403234,0.1306638,119190.0,119180.0,0.2174848]
[1752679403235,0.1905307,119190.0,119180.0,0.2174848]
[1752679403737,0.2143207,119190.0,119180.0,0.2174848]
[1752679403936,0.2143207,119190.0,119180.0,0.1921348]
[1752679404131,0.2143348,119180.0,119170.0,0.001]
[1752679404337,0.65268167,119180.0,119170.0,0.001]
[1752679404534,0.1677689,119170.0,119160.0,0.00722335]
[1752679404730,0.65269577,119170.0,119160.0,0.00722335]
[1752679404935,0.2191989,119170.0,119160.0,0.00722335]
[1752679405529,0.2191989,119170.0,119160.0,0.17500635]
[1752679405741,0.2191989,119170.0,119160.0,0.19938635]
[1752679406237,0.62990577,119170.0,119160.0,0.00722335]
[1752679406438,0.65269577,119170.0,119160.0,0.00722335]
[1752679406633,0.2191989,119170.0,119160.0,0.00722335]
[1752679406832,0.1677512,119190.0,119180.0,0.1677548]
[1752679407033,0.1677512,119190.0,119180.0,0.64184]
[1752679407233,0.1677512,119190.0,119180.0,0.8095948]
[1752679407440,0.1677512,119190.0,119180.0,0.8339748]
[1752679407646,0.1677512,119190.0,119180.0,0.8543448]
[1752679408443,0.190526,119200.0,119190.0,0.2174707]
[1752679408647,0.20824259,119200.0,119190.0,0.2174707]
[1752679409441,0.02279,119200.0,119190.0,0.2174707]
[1752679409646,0.1905166,119200.0,119190.0,0.2174707]
[1752679409950,0.2143066,119200.0,119190.0,0.1677407]
[1752679410344,0.1677266,119200.0,119190.0,0.65096757]
[1752679410539,0.1677266,119200.0,119190.0,0.64096757]
[1752679410751,0.1677266,119200.0,119190.0,0.2074707]
[1752679411546,0.1697266,119200.0,119190.0,0.2074707]
[1752679411750,0.1677407,119190.0,119180.0,0.3383043]
[1752679412044,0.2211671,119200.0,119190.0,0.1921207]
[1752679412248,0.1925271,119200.0,119190.0,0.2174707]
[1752679412651,0.2163171,119200.0,119190.0,0.2174707]
[1752679413348,0.04858,119200.0,119190.0,0.8601907]
[1752679413549,0.002,119200.0,119190.0,1.29368757]
[1752679413748,0.1697268,119200.0,119190.0,1.29368757]
[1752679414146,0.002,119200.0,119190.0,1.29368757]
[1752679414351,0.3449439,119210.0,119200.0,0.1677268]
[1752679415552,0.3040128,119210.0,119200.0,0.1677268]
[1752679415748,0.05243,119210.0,119200.0,0.1677268]
[1752679416055,0.001,119210.0,119200.0,0.65095367]
[1752679416355,0.05143,119230.0,119220.0,0.1676987]
[1752679416555,0.02279,119230.0,119220.0,1.29184557]
[1752679416752,0.05143,119250.0,119240.0,0.1676705]
[1752679417054,0.1904465,119250.0,119240.0,0.64089737]
[1752679417257,0.02279,119250.0,119240.0,0.64089737]
[1752679418056,0.18663564,119260.0,119250.0,0.1676565]
[1752679418251,0.20962564,119260.0,119250.0,0.8583065]
[1752679418452,0.20962564,119260.0,119250.0,0.8379365]
[1752679418958,0.23341564,119260.0,119250.0,0.8379365]
[1752679419151,0.0002,119260.0,119250.0,1.29180337]
[1752679419353,0.0022,119260.0,119250.0,1.3090973]
[1752679419649,0.00120067,119260.0,119250.0,1.3090973]
[1752679420871,0.00120067,119260.0,119250.0,1.3090173]
[1752679421164,0.00120067,119260.0,119250.0,0.6681773]
[1752679421462,0.00120067,119260.0,119250.0,1.3090173]
[1752679421657,0.00120067,119260.0,119250.0,0.6681773]
[1752679421861,0.00120067,119260.0,119250.0,1.3088973]
[1752679422364,0.04658,119270.0,119260.0,0.1676424]
[1752679422557,0.02279,119270.0,119260.0,0.65086927]
[1752679423155,0.02279,119270.0,119260.0,0.2173724]
[1752679423352,0.04658,119270.0,119260.0,0.8377224]
[1752679423560,0.1952545,119280.0,119270.0,0.1676283]
[1752679423757,0.2190445,119280.0,119270.0,0.1726083]
[1752679424164,0.2190445,119280.0,119270.0,0.1727083]
[1752679424361,0.05143,119280.0,119270.0,0.1970883]
[1752679424565,0.02864,119300.0,119290.0,0.1676002]
[1752679424861,0.02279,119300.0,119290.0,1.28142707]
[1752679425167,0.1952262,119300.0,119290.0,0.8275602]
[1752679426566,0.02764,119300.0,119290.0,0.8275602]
[1752679426754,0.1903762,119300.0,119290.0,0.8275602]
[1752679426962,0.2210162,119300.0,119290.0,0.8275602]
[1752679427655,0.05343,119300.0,119290.0,0.8274802]
[1752679427858,0.02479,119300.0,119290.0,1.28134707]
[1752679428255,0.1923762,119300.0,119290.0,0.8478502]
[1752679428560,0.02279,119290.0,119280.0,0.29759664]
[1752679428865,0.03064,119300.0,119290.0,0.1676003]
[1752679429065,0.2161662,119300.0,119290.0,0.1969603]
[1752679429368,0.2160662,119300.0,119290.0,0.02936]
[1752679429667,0.2160662,119300.0,119290.0,0.1969603]
[1752679429863,0.1676003,119290.0,119280.0,0.02181244]
[1752679430062,0.2190303,119290.0,119280.0,0.68667244]
[1752679430261,0.2190303,119290.0,119280.0,0.85428674]
[1752679430458,0.02279,119290.0,119280.0,1.30815361]
[1752679430662,0.2999134,119300.0,119290.0,0.1920303]
[1752679430966,0.2999134,119300.0,119290.0,0.1966903]
[1752679431268,0.2999134,119300.0,119280.0,1.23688401]
[1752679431269,0.2199303,119290.0,119280.0,0.01983244]
[1752679431469,0.2199303,119290.0,119280.0,0.82784674]
[1752679431670,0.2199303,119290.0,119280.0,0.85393674]
[1752679432565,0.2199303,119290.0,119280.0,0.68632244]
[1752679432767,0.2199303,119290.0,119280.0,0.01683244]
[1752679432966,0.2199303,119290.0,119280.0,0.65723244]
[1752679433760,0.65342717,119290.0,119280.0,0.01683244]
[1752679433961,0.2199724,119260.0,119250.0,0.01729393]
[1752679434159,0.65346927,119260.0,119250.0,3e-08]
[1752679434363,0.2200146,119230.0,119220.0,0.170523]
[1752679434565,0.2200146,119230.0,119220.0,0.141433]
[1752679434869,0.1962127,119210.0,119200.0,0.16783219]
[1752679435061,0.1677127,119210.0,119200.0,0.19692219]
[1752679435264,0.1677127,119210.0,119200.0,0.65078906]
[1752679435463,0.2336246,119220.0,119210.0,0.1677127]
[1752679435766,0.2574344,119230.0,119220.0,0.1723587]
[1752679436063,0.1916605,119240.0,119230.0,0.2171446]
[1752679436257,0.1916465,119250.0,119240.0,0.2171305]
[1752679436458,0.1918465,119250.0,119240.0,0.8370805]
[1752679436658,0.1676705,119240.0,119230.0,0.00486]
[1752679436860,0.1918605,119240.0,119230.0,0.8372146]
[1752679437067,0.1918605,119240.0,119230.0,0.8575846]
[1752679437567,0.1678705,119240.0,119230.0,0.8575846]
[1752679437770,0.0002,119240.0,119230.0,0.8575846]
[1752679437967,0.0002,119240.0,119230.0,1.29108147]
[1752679437968,0.1678705,119240.0,119230.0,1.29108147]
[1752679438169,0.1678705,119240.0,119230.0,1.29408147]
[1752679438470,0.0002,119240.0,119230.0,1.29408147]
[1752679438860,0.1678704,119240.0,119230.0,1.29404147]
[1752679439066,0.1678704,119240.0,119230.0,0.65364147]
[1752679439262,0.1678704,119240.0,119230.0,0.65464147]
[1752679439461,0.1678704,119240.0,119230.0,1.29504147]
[1752679439657,0.1678704,119240.0,119230.0,0.65464147]
[1752679439862,0.1918604,119240.0,119230.0,1.29504147]
[1752679440265,0.1678704,119240.0,119230.0,1.29504147]
[1752679440666,0.0002,119240.0,119230.0,1.29504147]
[1752679440969,0.1678705,119240.0,119230.0,1.29504147]
[1752679441364,0.0002,119240.0,119230.0,1.29504147]
[1752679441564,0.10765,119270.0,119250.0,0.04946]
[1752679441763,0.10765,119270.0,119260.0,1.27062927]
[1752679441764,0.2754511,119270.0,119260.0,1.27062927]
[1752679442064,0.2514611,119270.0,119260.0,0.8575024]
[1752679442268,0.2754511,119270.0,119260.0,0.8575024]
[1752679442461,0.2095507,119270.0,119260.0,0.8575024]
[1752679442667,0.1676411,119270.0,119260.0,1.29099927]
[1752679443459,0.1676411,119270.0,119260.0,0.04946]
[1752679443661,0.1676411,119270.0,119260.0,1.29095927]
[1752679443868,0.125721,119280.0,119270.0,0.2170883]
[1752679443869,0.2095238,119280.0,119270.0,0.2170883]
[1752679444069,0.2095238,119280.0,119270.0,0.66725231]
[1752679444370,0.2095238,119280.0,119270.0,0.01666714]
[1752679444371,0.2618538,119280.0,119270.0,0.01666714]
[1752679444572,0.2618538,119280.0,119270.0,0.00666714]
[1752679445270,0.2628538,119280.0,119270.0,0.00666714]
[1752679445463,0.7125062,119280.0,119270.0,0.00666714]
[1752679445872,0.27900933,119280.0,119270.0,0.00666714]
[1752679446371,0.27900933,119280.0,119270.0,0.17429544]
[1752679446571,0.77900933,119280.0,119270.0,0.17429544]
[1752679446772,0.77900933,119280.0,119270.0,0.00666714]
[1752679446970,0.77900933,119280.0,119270.0,0.64694714]
[1752679447470,0.77880933,119280.0,119270.0,0.81457544]
[1752679447664,0.77880933,119280.0,119270.0,0.64694714]
[1752679447866,1.2123062,119280.0,119270.0,0.00666714]
[1752679448067,1.2123062,119280.0,119250.0,0.0166367]
[1752679448068,0.1961424,119260.0,119250.0,0.0166367]
[1752679448271,0.65346927,119260.0,119250.0,0.0166367]
[1752679448871,0.66963444,119260.0,119250.0,0.0166367]
[1752679449475,0.66963444,119260.0,119250.0,0.0176367]
[1752679449664,0.65346927,119260.0,119250.0,0.0176367]
[1752679450071,1.15346927,119260.0,119250.0,0.0176367]
[1752679450676,0.7199724,119260.0,119250.0,0.0176367]
[1752679450975,1.15346927,119260.0,119250.0,0.0176367]
[1752679451372,1.15346927,119260.0,119250.0,0.0166367]
[1752679453177,0.7199724,119260.0,119250.0,0.0166367]
[1752679453875,1.15346927,119260.0,119250.0,0.0166367]
[1752679454380,0.7199724,119260.0,119250.0,0.0166367]
[1752679454971,0.7199724,119260.0,119250.0,0.2133832]
[1752679455173,0.2199724,119260.0,119250.0,0.2133832]
[1752679455573,0.1916324,119260.0,119250.0,0.66725007]
[1752679456170,0.1497172,119270.0,119260.0,0.1676425]
[1752679456374,0.2514566,119270.0,119260.0,0.65059937]
[1752679456575,0.2514566,119270.0,119260.0,0.68954]
[1752679456776,0.2992766,119270.0,119260.0,0.8368125]
[1752679456977,0.2514566,119270.0,119260.0,0.8571825]
[1752679457378,0.2524566,119270.0,119260.0,0.8571825]
[1752679457683,0.2764466,119270.0,119260.0,0.8571825]
[1752679457874,0.3047866,119270.0,119260.0,0.66917]
[1752679458479,0.3047866,119270.0,119250.0,0.0166367]
[1752679458480,0.2199725,119260.0,119250.0,0.6857267]
[1752679458674,0.2199725,119260.0,119250.0,0.6859267]
[1752679458878,0.65346937,119260.0,119250.0,1e-07]
[1752679459178,0.2200147,119230.0,119220.0,0.01687022]
[1752679459372,0.65351157,119230.0,119220.0,2e-08]
[1752679459571,0.1962129,119210.0,119200.0,0.00010539]
[1752679459771,0.1677269,119200.0,119190.0,0.017269]
[1752679459972,0.73826059,119200.0,119190.0,0.017269]
[1752679460177,0.73826059,119200.0,119190.0,1e-07]
[1752679460385,0.7220681,119200.0,119190.0,1e-07]
[1752679460779,0.2205351,119180.0,119170.0,6e-08]
[1752679460979,0.1677692,119170.0,119160.0,0.00722335]
[1752679461180,0.65444607,119170.0,119160.0,0.00722335]
[1752679461380,0.65444607,119170.0,119160.0,5e-08]
[1752679461779,0.1678252,119130.0,119120.0,0.9406466]
[1752679461983,0.16790337,119130.0,119120.0,0.8986871]
[1752679462280,0.16790337,119130.0,119120.0,0.7986871]
[1752679462877,0.0839023,119150.0,119130.0,0.0908957]
[1752679463083,0.283666,119150.0,119140.0,0.27587649]
[1752679463277,0.283666,119150.0,119140.0,0.10806509]
[1752679463480,0.308056,119150.0,119140.0,0.10806509]
[1752679463679,0.308056,119150.0,119140.0,0.08769509]
[1752679463878,0.332166,119150.0,119140.0,0.08769509]
[1752679464082,0.336846,119150.0,119140.0,0.05912509]
[1752679464287,0.2163114,119140.0,119130.0,0.91214083]
[1752679464586,0.2163114,119140.0,119130.0,0.92014083]
[1752679464773,0.02439,119140.0,119130.0,0.94051083]
[1752679464975,0.2341441,119150.0,119140.0,0.1963814]
[1752679465180,0.2341441,119150.0,119140.0,0.03157]
[1752679465380,0.2629341,119150.0,119140.0,0.027]
[1752679465580,0.2629341,119150.0,119140.0,0.003]
[1752679465778,0.2629341,119150.0,119140.0,0.00315]
[1752679465975,0.5485,119150.0,119140.0,0.1995314]
[1752679466282,0.6677974,119150.0,119140.0,1.35248745]
[1752679466481,0.5,119150.0,119140.0,1.29335827]
[1752679466679,0.5,119150.0,119140.0,1.35248745]
[1752679466880,0.5,119150.0,119140.0,1.29335827]
[1752679467182,0.5,119150.0,119140.0,1.34945528]
[1752679467486,0.2516769,119160.0,119150.0,0.2167374]
[1752679467678,0.3048569,119160.0,119150.0,0.02857]
[1752679467879,0.3048569,119160.0,119150.0,0.66861]
[1752679468285,0.3048569,119160.0,119150.0,0.8364074]
[1752679468480,0.02439,119160.0,119150.0,0.8364074]
[1752679468783,0.1921734,119160.0,119150.0,0.8567774]
[1752679469184,0.2162834,119160.0,119150.0,0.8567774]
[1752679469485,0.2162834,119160.0,119150.0,0.68898]
[1752679469785,0.2209634,119160.0,119150.0,0.64004]
[1752679470181,0.2209634,119160.0,119150.0,0.8108374]
[1752679470387,0.1921734,119160.0,119150.0,0.8597774]
[1752679470582,0.1921734,119160.0,119150.0,0.91887441]
[1752679470776,0.1921734,119160.0,119150.0,0.05194]
[1752679470977,0.65446027,119160.0,119150.0,0.003]
[1752679471183,0.2209634,119160.0,119150.0,0.003]
[1752679471782,0.2209634,119160.0,119150.0,0.1707974]
[1752679472690,0.2209634,119160.0,119150.0,0.003]
[1752679473777,0.1677974,119150.0,119140.0,0.00015]
[1752679473983,0.1678538,119110.0,119100.0,0.191865]
[1752679474184,0.2210338,119110.0,119100.0,0.191865]
[1752679474379,0.2210338,119110.0,119100.0,0.21081532]
[1752679474686,0.1922438,119110.0,119100.0,0.23118532]
[1752679475383,0.02439,119120.0,119110.0,0.2167938]
[1752679475693,0.3049338,119130.0,119120.0,0.1964097]
[1752679475988,0.3051338,119130.0,119120.0,0.1964097]
[1752679476181,0.3051338,119130.0,119120.0,0.02857]
[1752679476386,0.3051338,119130.0,119110.0,0.8785339]
[1752679476387,0.2210197,119120.0,119110.0,0.8785339]
[1752679476582,0.2212197,119120.0,119110.0,0.8783339]
[1752679476791,0.2212197,119120.0,119110.0,0.8813339]
[1752679476986,0.2165397,119120.0,119110.0,0.8813339]
[1752679477294,0.0002,119120.0,119110.0,1.33220077]
[1752679478086,0.0002,119120.0,119110.0,1.33420077]
[1752679478492,0.0002,119120.0,119110.0,1.75210477]
[1752679478793,0.1678656,119130.0,119120.0,0.2167797]
[1752679478994,0.1678656,119130.0,119120.0,0.66695222]
[1752679479294,4e-05,119130.0,119120.0,0.66695222]
[1752679479788,0.1678656,119130.0,119120.0,0.66695222]
[1752679479980,4e-05,119130.0,119120.0,1.30683222]
[1752679480183,0.2761042,119150.0,119140.0,0.1678115]
[1752679480490,0.2760767,119160.0,119150.0,0.02857]
[1752679480695,0.3048667,119160.0,119150.0,0.66841]
[1752679481191,0.3048667,119160.0,119150.0,0.02857]
[1752679481493,0.1922015,119140.0,119130.0,0.1927656]
[1752679481696,0.1922015,119140.0,119130.0,0.8325656]
[1752679481883,0.2163115,119140.0,119130.0,0.02857]
[1752679482087,0.2209915,119140.0,119130.0,0.8361956]
[1752679482288,0.2209915,119140.0,119130.0,0.66837]
[1752679482490,0.2210056,119130.0,119120.0,0.85487415]
[1752679482690,0.2210056,119130.0,119120.0,0.85484535]
[1752679482884,0.2210056,119130.0,119120.0,0.01867565]
[1752679483189,0.2210056,119130.0,119120.0,0.01667565]
[1752679483892,0.2210056,119130.0,119120.0,0.18908535]
[1752679484092,0.2210056,119130.0,119120.0,0.21308535]
[1752679484394,0.2210056,119130.0,119120.0,0.21508535]
[1752679484591,0.0419425,119170.0,119150.0,0.04437]
[1752679484791,4e-05,119180.0,119170.0,0.04437]
[1752679484996,0.1921852,119180.0,119170.0,0.1917693]
[1752679485192,0.2162952,119180.0,119170.0,0.09432783]
[1752679485393,0.2209752,119180.0,119170.0,0.06575783]
[1752679485593,0.2209752,119180.0,119170.0,0.1677693]
[1752679485794,0.2209752,119180.0,119170.0,0.1963393]
[1752679485996,4e-05,119180.0,119170.0,0.62983617]
[1752679486195,4e-05,119180.0,119170.0,0.65020617]
[1752679487005,4e-05,119180.0,119170.0,1.30748617]
[1752679487499,0.02443,119180.0,119170.0,0.88844865]
[1752679487699,4e-05,119180.0,119170.0,0.8739893]
[1752679488300,4e-05,119180.0,119170.0,1.30748617]
[1752679488503,0.00104,119180.0,119170.0,1.30748617]
[1752679488700,0.168795,119180.0,119170.0,1.30748617]
[1752679489101,0.168795,119180.0,119170.0,0.8739893]
[1752679489302,0.168795,119180.0,119170.0,1.30748617]
[1752679489695,0.168795,119180.0,119170.0,1.37328413]
[1752679489902,0.168795,119180.0,119170.0,0.95426716]
[1752679490102,0.168795,119180.0,119170.0,1.38776403]
[1752679490398,0.221975,119180.0,119170.0,0.72219796]
[1752679490597,0.65547187,119180.0,119170.0,0.06579796]
[1752679490802,0.1677691,119170.0,119160.0,0.65544]
[1752679491099,0.2189891,119170.0,119160.0,0.65544]
[1752679491798,0.2190032,119160.0,119150.0,0.01665177]
[1752679492098,0.251667,119170.0,119160.0,0.1677834]
[1752679492303,0.274737,119170.0,119160.0,0.2160734]
[1752679492605,0.2107422,119180.0,119170.0,0.1956893]
[1752679492807,0.22803721,119180.0,119170.0,1.30435617]
[1752679493103,0.2107422,119180.0,119170.0,0.8708593]
[1752679493304,0.2097422,119180.0,119170.0,0.8708593]
[1752679493801,4e-05,119180.0,119170.0,1.30435617]
[1752679493999,0.00104,119180.0,119170.0,1.72218017]
[1752679494203,4e-05,119200.0,119190.0,0.2160311]
[1752679494406,0.1677671,119200.0,119190.0,1.30324797]
[1752679494794,4e-05,119200.0,119190.0,1.30324797]
[1752679495000,4e-05,119200.0,119190.0,1.36901971]
[1752679496009,0.1677671,119200.0,119190.0,1.38596817]
[1752679496318,0.1679671,119200.0,119190.0,0.73224817]
[1752679496513,0.00024,119200.0,119190.0,1.38516817]
[1752679496814,0.170967,119200.0,119190.0,1.38516817]
[1752679497411,0.167967,119200.0,119190.0,1.38516817]
[1752679497919,0.2746335,119220.0,119190.0,1.21742707]
[1752679498125,0.2515635,119220.0,119210.0,0.64949987]
[1752679498415,0.2746335,119220.0,119210.0,0.867363]
[1752679498616,0.2978435,119220.0,119210.0,0.846993]
[1752679498918,0.2978435,119220.0,119210.0,0.867363]
[1752679499117,4e-05,119230.0,119220.0,0.2159885]
[1752679499315,4e-05,119230.0,119220.0,0.66647295]
[1752679499707,4e-05,119230.0,119220.0,1.31751295]
[1752679499913,4e-05,119230.0,119220.0,0.66647295]
[1752679500118,4e-05,119230.0,119220.0,1.31751295]
[1752679500515,0.1677249,119230.0,119220.0,0.23297608]
[1752679500718,0.2140049,119230.0,119220.0,0.86292608]
[1752679501018,0.2140049,119230.0,119220.0,0.88329608]
[1752679501019,0.1907949,119230.0,119220.0,0.88329608]
[1752679501312,4e-05,119230.0,119220.0,1.31679295]
[1752679501517,0.1677249,119230.0,119220.0,0.66647295]
[1752679501716,0.2189449,119230.0,119220.0,0.01698758]
[1752679501918,0.1677271,119200.0,119190.0,0.01694846]
[1752679502113,0.2189471,119200.0,119190.0,0.66714846]
[1752679502415,0.2189471,119200.0,119190.0,0.01694846]
[1752679502720,0.2140071,119200.0,119190.0,0.21260956]
[1752679502908,0.1907971,119200.0,119190.0,0.06523846]
[1752679503115,0.2140071,119200.0,119190.0,0.04486846]
[1752679503516,0.2189471,119200.0,119190.0,0.01694846]
[1752679503814,0.2189471,119200.0,119190.0,0.66654846]
[1752679504124,0.2189471,119200.0,119190.0,0.83528956]
[1752679504717,0.2140071,119200.0,119190.0,0.21360956]
[1752679505317,0.02815,119220.0,119210.0,0.1907927]
[1752679505513,0.2515802,119230.0,119220.0,0.1956187]
[1752679505819,0.2978602,119230.0,119220.0,0.1956187]
[1752679506013,0.3028002,119230.0,119220.0,0.1956187]
[1752679506824,0.3058002,119230.0,119220.0,0.1956187]
[1752679507117,0.00304,119230.0,119220.0,0.64948557]
[1752679507322,4e-05,119230.0,119220.0,0.67166267]
[1752679507522,0.1677249,119230.0,119220.0,0.67166267]
[1752679507821,0.00104,119230.0,119220.0,0.67166267]
[1752679508118,0.00104,119230.0,119220.0,0.70123214]
[1752679508316,0.00104,119230.0,119220.0,0.86898413]
[1752679508717,4e-05,119250.0,119240.0,0.2159608]
[1752679508932,0.02307,119270.0,119260.0,0.1676427]
[1752679509218,0.10776616,119280.0,119260.0,0.02792]
[1752679509412,0.1676427,119260.0,119250.0,0.815416]
[1752679509608,0.2977499,119260.0,119250.0,0.67116]
[1752679509825,0.3026899,119260.0,119250.0,0.8388167]
[1752679510116,0.2326263,119260.0,119250.0,0.8436567]
[1752679510312,0.1907127,119260.0,119250.0,1.29752357]
[1752679510508,0.1676336,119270.0,119260.0,0.2159327]
[1752679510714,0.3446059,119280.0,119270.0,0.1676286]
[1752679510916,0.3446059,119280.0,119270.0,0.8392286]
[1752679511222,0.3446059,119280.0,119270.0,0.6716]
[1752679511428,0.3446059,119280.0,119270.0,0.64852]
[1752679511618,0.2188884,119280.0,119270.0,0.1907086]
[1752679511929,0.1956527,119260.0,119250.0,0.04829]
[1752679512218,0.2188767,119250.0,119240.0,0.18436722]
[1752679512523,0.1676567,119250.0,119240.0,0.88077722]
[1752679512721,0.1907267,119250.0,119240.0,0.01669752]
[1752679512928,0.65237357,119250.0,119240.0,0.01669752]
[1752679513222,0.2188767,119250.0,119240.0,0.01669752]
[1752679514122,0.2188767,119250.0,119240.0,0.18436832]
[1752679514328,0.7188767,119250.0,119240.0,0.01669752]
[1752679514516,0.5,119250.0,119240.0,1.31411519]
[1752679514710,0.6678567,119250.0,119240.0,1.31411519]
[1752679514910,0.5002,119250.0,119240.0,1.31411519]
[1752679515723,0.2746883,119280.0,119270.0,0.1676286]
[1752679515913,0.3026983,119280.0,119270.0,0.8162686]
[1752679516312,0.04632,119280.0,119270.0,0.8441886]
[1752679516515,0.2139345,119280.0,119270.0,0.8211086]
[1752679516720,0.2188745,119280.0,119270.0,0.64864]
[1752679516920,0.2188745,119280.0,119270.0,0.8162686]
[1752679517322,0.2188745,119280.0,119270.0,0.8393486]
[1752679517516,0.1676286,119270.0,119260.0,0.9241335]
[1752679517720,0.1676286,119270.0,119260.0,0.9493435]
[1752679518116,0.2139086,119270.0,119260.0,0.8451627]